[Event "Titled Tuesday Blitz June 13 Early 2023"]
[White "Becerra, Juan David"]
[Black "FunnyDuck66"]
[WhiteFideId "4404998"]
[WhiteElo "2304"]
[BlackElo "2457"]
[Result "1/2-1/2"]
[Round "10"]
[TimeControl "180+2"]
[Date "2023.06.13"]
[WhiteClock "0:00:10"]
[BlackClock "0:00:12"]
[Board "74"]

1. e4 {[%clk 0:02:56]}  c6 {[%clk 0:03:00]} 2. c4 {[%clk 0:02:56]}  d5 {[%clk 0:02:59]} 3. cxd5 {[%clk 0:02:57]}  cxd5 {[%clk 0:03:00]} 4. exd5 {[%clk 0:02:57]}  Nf6 {[%clk 0:03:01]} 5. Qa4+ {[%clk 0:02:55]}  Nbd7 {[%clk 0:02:58]} 6. Nc3 {[%clk 0:02:55]}  g6 {[%clk 0:02:58]} 7. Bc4 {[%clk 0:02:55]}  Bg7 {[%clk 0:02:55]} 8. d3 {[%clk 0:02:55]}  a6 {[%clk 0:02:52]} 9. Nf3 {[%clk 0:02:52]}  O-O {[%clk 0:02:52]} 10. Qa3 {[%clk 0:02:51]}  b6 {[%clk 0:02:51]} 11. O-O {[%clk 0:02:50]}  Bb7 {[%clk 0:02:50]} 12. Re1 {[%clk 0:02:49]}  Re8 {[%clk 0:02:49]} 13. Be3 {[%clk 0:02:41]}  b5 {[%clk 0:02:46]} 14. Bb3 {[%clk 0:02:40]}  Nb6 {[%clk 0:02:27]} 15. Bxb6 {[%clk 0:02:39]}  Qxb6 {[%clk 0:02:28]} 16. Qb4 {[%clk 0:02:40]}  Rad8 {[%clk 0:02:06]} 17. Rxe7 {[%clk 0:02:18]}  Rxe7 {[%clk 0:01:37]} 18. Qxe7 {[%clk 0:02:19]}  Nxd5 {[%clk 0:01:38]} 19. Nxd5 {[%clk 0:02:02]}  Bxd5 {[%clk 0:01:37]} 20. Bxd5 {[%clk 0:01:53]}  Rxd5 {[%clk 0:01:38]} 21. Qe8+ {[%clk 0:01:53]}  Bf8 {[%clk 0:01:38]} 22. d4 {[%clk 0:01:12]}  Kg7 {[%clk 0:01:36]} 23. Rc1 {[%clk 0:01:05]}  Rd8 {[%clk 0:01:27]} 24. Qe5+ {[%clk 0:01:04]}  Kg8 {[%clk 0:01:27]} 25. d5 {[%clk 0:00:41]}  Bg7 {[%clk 0:01:21]} 26. Qe7 {[%clk 0:00:38]}  Bxb2 {[%clk 0:01:11]} 27. Rc7 {[%clk 0:00:37]}  Qf6 {[%clk 0:01:10]} 28. Qxf6 {[%clk 0:00:23]}  Bxf6 {[%clk 0:01:10]} 29. Rc6 {[%clk 0:00:22]}  Be7 {[%clk 0:01:00]} 30. Rxa6 {[%clk 0:00:20]}  Rxd5 {[%clk 0:01:00]} 31. g3 {[%clk 0:00:21]}  Bc5 {[%clk 0:00:56]} 32. Kg2 {[%clk 0:00:19]}  Rd1 {[%clk 0:00:51]} 33. Rc6 {[%clk 0:00:19]}  Be7 {[%clk 0:00:34]} 34. Rc2 {[%clk 0:00:19]}  Kg7 {[%clk 0:00:30]} 35. h4 {[%clk 0:00:19]}  h5 {[%clk 0:00:29]} 36. Nd2 {[%clk 0:00:17]}  Re1 {[%clk 0:00:17]} 37. Kf3 {[%clk 0:00:17]}  Re6 {[%clk 0:00:17]} 38. Ne4 {[%clk 0:00:16]}  Ra6 {[%clk 0:00:16]} 39. Nc3 {[%clk 0:00:15]}  Ra3 {[%clk 0:00:15]} 40. Kg2 {[%clk 0:00:16]}  b4 {[%clk 0:00:14]} 41. Nd5 {[%clk 0:00:16]}  Bd6 {[%clk 0:00:15]} 42. Rc6 {[%clk 0:00:16]}  Bf8 {[%clk 0:00:12]} 43. Rc2 {[%clk 0:00:16]}  Bd6 {[%clk 0:00:12]} 44. Ne3 {[%clk 0:00:16]}  Be5 {[%clk 0:00:10]} 45. Nc4 {[%clk 0:00:15]}  Rc3 {[%clk 0:00:10]} 46. Rxc3 {[%clk 0:00:15]}  Bxc3 {[%clk 0:00:11]} 47. Kf3 {[%clk 0:00:15]}  Kf6 {[%clk 0:00:12]} 48. Ke4 {[%clk 0:00:15]}  Ke6 {[%clk 0:00:11]} 49. f3 {[%clk 0:00:15]}  Be1 {[%clk 0:00:11]} 50. g4 {[%clk 0:00:08]}  Bxh4 {[%clk 0:00:10]} 51. gxh5 {[%clk 0:00:09]}  gxh5 {[%clk 0:00:11]} 52. Ne3 {[%clk 0:00:07]}  Be7 {[%clk 0:00:11]} 53. Nf5 {[%clk 0:00:07]}  Bf6 {[%clk 0:00:10]} 54. Kf4 {[%clk 0:00:04]}  Kd5 {[%clk 0:00:09]} 55. Nh6 {[%clk 0:00:04]}  Kc4 {[%clk 0:00:09]} 56. Nxf7 {[%clk 0:00:04]}  Kc3 {[%clk 0:00:08]} 57. Nd6 {[%clk 0:00:02]}  Kb2 {[%clk 0:00:07]} 58. Ne4 {[%clk 0:00:02]}  Be7 {[%clk 0:00:07]} 59. Nf2 {[%clk 0:00:01]}  h4 {[%clk 0:00:07]} 60. Nd3+ {[%clk 0:00:01]}  Kxa2 {[%clk 0:00:05]} 61. Nxb4+ {[%clk 0:00:02]}  Bxb4 {[%clk 0:00:05]} 62. Kg4 {[%clk 0:00:02]}  Be7 {[%clk 0:00:05]} 63. Kh3 {[%clk 0:00:03]}  Kb3 {[%clk 0:00:05]} 64. Kh2 {[%clk 0:00:04]}  Kc4 {[%clk 0:00:06]} 65. Kh1 {[%clk 0:00:05]}  Kd5 {[%clk 0:00:07]} 66. f4 {[%clk 0:00:06]}  Ke4 {[%clk 0:00:07]} 67. f5 {[%clk 0:00:07]}  Kxf5 {[%clk 0:00:08]} 68. Kg2 {[%clk 0:00:07]}  Kg4 {[%clk 0:00:09]} 69. Kh1 {[%clk 0:00:08]}  h3 {[%clk 0:00:10]} 70. Kh2 {[%clk 0:00:08]}  Bd6+ {[%clk 0:00:11]} 71. Kh1 {[%clk 0:00:09]}  h2 {[%clk 0:00:11]} 72. Kg2 {[%clk 0:00:09]}  h1=Q+ {[%clk 0:00:12]} 73. Kxh1 {[%clk 0:00:10]} 1/2-1/2


[Site "https://www.chess.com"]

[Event "Titled Tuesday Blitz June 13 Early 2023"]
[White "Hoffmann, Asa"]
[Black "Bodnaruk, Anastasia"]
[WhiteFideId "2001470"]
[BlackFideId "4181751"]
[WhiteElo "2117"]
[BlackElo "2304"]
[Result "0-1"]
[Round "10"]
[TimeControl "180+2"]
[Date "2023.06.13"]
[WhiteClock "0:00:08"]
[BlackClock "0:00:05"]
[Board "76"]

1. d4 {[%clk 0:02:58]}  Nf6 {[%clk 0:02:58]} 2. Bg5 {[%clk 0:02:55]}  g6 {[%clk 0:02:56]} 3. Nc3 {[%clk 0:02:55]}  d5 {[%clk 0:02:54]} 4. f3 {[%clk 0:02:54]}  Bg7 {[%clk 0:02:50]} 5. e4 {[%clk 0:02:54]}  c6 {[%clk 0:02:36]} 6. e5 {[%clk 0:02:52]}  Nfd7 {[%clk 0:02:36]} 7. Qd2 {[%clk 0:02:52]}  h6 {[%clk 0:02:32]} 8. Be3 {[%clk 0:02:51]}  Nf8 {[%clk 0:02:22]} 9. f4 {[%clk 0:02:50]}  b5 {[%clk 0:01:51]} 10. Nf3 {[%clk 0:02:49]}  a5 {[%clk 0:01:49]} 11. Bd3 {[%clk 0:02:49]}  Bg4 {[%clk 0:01:46]} 12. O-O {[%clk 0:02:47]}  Na6 {[%clk 0:01:13]} 13. h3 {[%clk 0:02:42]}  Bxf3 {[%clk 0:01:11]} 14. Rxf3 {[%clk 0:02:42]}  Nb4 {[%clk 0:01:11]} 15. Be2 {[%clk 0:02:40]}  f5 {[%clk 0:01:08]} 16. exf6 {[%clk 0:02:37]}  exf6 {[%clk 0:01:08]} 17. a3 {[%clk 0:02:28]}  Na6 {[%clk 0:01:08]} 18. f5 {[%clk 0:02:25]}  g5 {[%clk 0:01:05]} 19. Rf2 {[%clk 0:02:21]}  h5 {[%clk 0:01:05]} 20. Qd1 {[%clk 0:02:18]}  h4 {[%clk 0:01:04]} 21. Bh5+ {[%clk 0:02:16]}  Kd7 {[%clk 0:01:04]} 22. Bg4 {[%clk 0:02:14]}  Kc8 {[%clk 0:01:01]} 23. Bxg5 {[%clk 0:02:13]}  Kb7 {[%clk 0:00:57]} 24. Bf4 {[%clk 0:02:09]}  Nc7 {[%clk 0:00:53]} 25. Qd2 {[%clk 0:02:08]}  Ne8 {[%clk 0:00:52]} 26. Re1 {[%clk 0:02:07]}  Nd6 {[%clk 0:00:52]} 27. b3 {[%clk 0:02:04]}  Nh7 {[%clk 0:00:37]} 28. Rfe2 {[%clk 0:02:03]}  Re8 {[%clk 0:00:34]} 29. Re6 {[%clk 0:02:03]}  Rxe6 {[%clk 0:00:29]} 30. Rxe6 {[%clk 0:02:00]}  Bf8 {[%clk 0:00:26]} 31. Qf2 {[%clk 0:01:56]}  b4 {[%clk 0:00:26]} 32. axb4 {[%clk 0:01:54]}  axb4 {[%clk 0:00:26]} 33. Na4 {[%clk 0:01:54]}  Ne4 {[%clk 0:00:26]} 34. Qxh4 {[%clk 0:01:48]}  Nhg5 {[%clk 0:00:24]} 35. Bxg5 {[%clk 0:01:41]}  Nxg5 {[%clk 0:00:23]} 36. Re2 {[%clk 0:01:34]}  Bd6 {[%clk 0:00:23]} 37. Qf2 {[%clk 0:01:27]}  Ne4 {[%clk 0:00:21]} 38. Qf3 {[%clk 0:01:20]}  Qd7 {[%clk 0:00:15]} 39. Qd3 {[%clk 0:01:07]}  Re8 {[%clk 0:00:14]} 40. Bf3 {[%clk 0:01:07]}  Qxf5 {[%clk 0:00:14]} 41. Bxe4 {[%clk 0:01:03]}  dxe4 {[%clk 0:00:14]} 42. Qc4 {[%clk 0:01:01]}  Qf4 {[%clk 0:00:12]} 43. Nc5+ {[%clk 0:00:57]}  Kc7 {[%clk 0:00:12]} 44. Rf2 {[%clk 0:00:32]}  Qh2+ {[%clk 0:00:06]} 45. Kf1 {[%clk 0:00:32]}  e3 {[%clk 0:00:07]} 46. Na6+ {[%clk 0:00:13]}  Kb6 {[%clk 0:00:06]} 47. Nc5 {[%clk 0:00:10]}  Qh1+ {[%clk 0:00:05]} 48. Ke2 {[%clk 0:00:09]}  exf2+ {[%clk 0:00:05]} 49. Kf3 {[%clk 0:00:09]}  f1=Q+ {[%clk 0:00:05]} 50. Kg4 {[%clk 0:00:08]}  Qf4+ {[%clk 0:00:05]} 51. Kh5 {[%clk 0:00:08]}  Qg5# {[%clk 0:00:05]} 0-1


[Site "https://www.chess.com"]

[Event "Titled Tuesday Blitz June 13 Early 2023"]
[White "Jaivardhan Raj"]
[Black "Venkatesh, M.R."]
[WhiteFideId "25744437"]
[BlackFideId "5005779"]
[WhiteElo "1772"]
[BlackElo "2450"]
[Result "0-1"]
[Round "10"]
[TimeControl "180+2"]
[Date "2023.06.13"]
[WhiteClock "0:00:18"]
[BlackClock "0:01:47"]
[Board "79"]

1. e4 {[%clk 0:03:00]}  c5 {[%clk 0:02:38]} 2. Nf3 {[%clk 0:03:00]}  Nc6 {[%clk 0:02:36]} 3. d4 {[%clk 0:03:00]}  cxd4 {[%clk 0:02:35]} 4. Nxd4 {[%clk 0:03:01]}  Nf6 {[%clk 0:02:36]} 5. Nc3 {[%clk 0:03:00]}  d6 {[%clk 0:02:36]} 6. Be3 {[%clk 0:02:56]}  Ng4 {[%clk 0:02:32]} 7. Qd2 {[%clk 0:02:09]}  Nxe3 {[%clk 0:02:29]} 8. Qxe3 {[%clk 0:02:09]}  g6 {[%clk 0:02:22]} 9. Nxc6 {[%clk 0:01:51]}  bxc6 {[%clk 0:02:21]} 10. Qd4 {[%clk 0:01:51]}  Rg8 {[%clk 0:02:17]} 11. Bc4 {[%clk 0:01:47]}  Bg7 {[%clk 0:02:16]} 12. Qd2 {[%clk 0:01:45]}  Rb8 {[%clk 0:02:13]} 13. Bb3 {[%clk 0:01:43]}  Ba6 {[%clk 0:02:12]} 14. Ba4 {[%clk 0:01:39]}  Qb6 {[%clk 0:02:01]} 15. Nd5 {[%clk 0:01:00]}  Qxb2 {[%clk 0:01:59]} 16. Bxc6+ {[%clk 0:00:57]}  Kf8 {[%clk 0:01:59]} 17. Rd1 {[%clk 0:00:51]}  e6 {[%clk 0:01:53]} 18. Qa5 {[%clk 0:00:37]}  Bc4 {[%clk 0:01:50]} 19. Qc7 {[%clk 0:00:21]}  Bc3+ {[%clk 0:01:47]} 20. Nxc3 {[%clk 0:00:18]}  Qxc3+ {[%clk 0:01:47]} 0-1


[Site "https://www.chess.com"]

[Event "Titled Tuesday Blitz June 13 Early 2023"]
[White "Aloma Vidal, Robert"]
[Black "Howell, David W L"]
[WhiteFideId "2260409"]
[BlackFideId "410608"]
[WhiteElo "2435"]
[BlackElo "2567"]
[Result "0-1"]
[Round "10"]
[TimeControl "180+2"]
[Date "2023.06.13"]
[WhiteClock "0:00:08"]
[BlackClock "0:00:08"]
[Board "80"]

1. e4 {[%clk 0:03:00]}  e6 {[%clk 0:02:55]} 2. d4 {[%clk 0:03:00]}  d5 {[%clk 0:02:56]} 3. e5 {[%clk 0:03:00]}  c5 {[%clk 0:02:52]} 4. c3 {[%clk 0:03:00]}  Qb6 {[%clk 0:02:51]} 5. Nf3 {[%clk 0:03:00]}  Nc6 {[%clk 0:02:46]} 6. Be2 {[%clk 0:03:00]}  cxd4 {[%clk 0:02:42]} 7. cxd4 {[%clk 0:03:00]}  Nh6 {[%clk 0:02:40]} 8. Bxh6 {[%clk 0:03:00]}  Qxb2 {[%clk 0:02:40]} 9. Nc3 {[%clk 0:03:00]}  Qxc3+ {[%clk 0:02:17]} 10. Bd2 {[%clk 0:03:00]}  Qa3 {[%clk 0:02:18]} 11. O-O {[%clk 0:03:00]}  Bb4 {[%clk 0:02:11]} 12. Bc1 {[%clk 0:02:51]}  Qa5 {[%clk 0:02:06]} 13. h4 {[%clk 0:02:46]}  O-O {[%clk 0:01:50]} 14. h5 {[%clk 0:02:44]}  Bd7 {[%clk 0:01:38]} 15. h6 {[%clk 0:02:24]}  g6 {[%clk 0:01:37]} 16. Rb1 {[%clk 0:02:15]}  Rab8 {[%clk 0:01:21]} 17. Nh2 {[%clk 0:01:44]}  Be7 {[%clk 0:01:05]} 18. Ng4 {[%clk 0:01:42]}  Rfc8 {[%clk 0:00:59]} 19. a4 {[%clk 0:01:29]}  Qd8 {[%clk 0:00:52]} 20. Qd2 {[%clk 0:01:22]}  Na5 {[%clk 0:00:40]} 21. Qf4 {[%clk 0:01:19]}  Nc4 {[%clk 0:00:37]} 22. Ra1 {[%clk 0:01:05]}  a5 {[%clk 0:00:36]} 23. Rd1 {[%clk 0:00:52]}  b5 {[%clk 0:00:27]} 24. axb5 {[%clk 0:00:49]}  Rxb5 {[%clk 0:00:28]} 25. Rd3 {[%clk 0:00:48]}  Rcb8 {[%clk 0:00:24]} 26. Rf3 {[%clk 0:00:47]}  Be8 {[%clk 0:00:25]} 27. Bd3 {[%clk 0:00:43]}  Rb3 {[%clk 0:00:20]} 28. Kh2 {[%clk 0:00:41]}  R8b4 {[%clk 0:00:19]} 29. Qg3 {[%clk 0:00:36]}  a4 {[%clk 0:00:17]} 30. Nf6+ {[%clk 0:00:35]}  Bxf6 {[%clk 0:00:18]} 31. Rxf6 {[%clk 0:00:35]}  Nb2 {[%clk 0:00:16]} 32. Rf3 {[%clk 0:00:26]}  Nxd3 {[%clk 0:00:15]} 33. Rxd3 {[%clk 0:00:26]}  Rxd4 {[%clk 0:00:16]} 34. Rxb3 {[%clk 0:00:22]}  axb3 {[%clk 0:00:16]} 35. Bg5 {[%clk 0:00:20]}  Qb8 {[%clk 0:00:14]} 36. Rb1 {[%clk 0:00:17]}  b2 {[%clk 0:00:08]} 37. Bf6 {[%clk 0:00:12]}  Rb4 {[%clk 0:00:03]} 38. Qc3 {[%clk 0:00:11]}  d4 {[%clk 0:00:03]} 39. Qc5 {[%clk 0:00:10]}  Ba4 {[%clk 0:00:02]} 40. Bg7 {[%clk 0:00:09]}  d3 {[%clk 0:00:02]} 41. Qe7 {[%clk 0:00:06]}  d2 {[%clk 0:00:02]} 42. Qf6 {[%clk 0:00:06]}  d1=Q {[%clk 0:00:01]} 43. Rxd1 {[%clk 0:00:06]}  Bxd1 {[%clk 0:00:02]} 44. Bf8 {[%clk 0:00:06]}  Kxf8 {[%clk 0:00:03]} 45. Qg7+ {[%clk 0:00:04]}  Ke7 {[%clk 0:00:03]} 46. Qxh7 {[%clk 0:00:05]}  Bh5 {[%clk 0:00:03]} 47. Qg7 {[%clk 0:00:05]}  b1=Q {[%clk 0:00:04]} 48. Qf6+ {[%clk 0:00:04]}  Kd7 {[%clk 0:00:04]} 49. h7 {[%clk 0:00:05]}  Qe4 {[%clk 0:00:04]} 50. f3 {[%clk 0:00:04]}  Qh4+ {[%clk 0:00:04]} 51. Qxh4 {[%clk 0:00:04]}  Rxh4+ {[%clk 0:00:04]} 52. Kg3 {[%clk 0:00:05]}  Qxe5+ {[%clk 0:00:05]} 53. Kxh4 {[%clk 0:00:05]}  Qh8 {[%clk 0:00:05]} 54. g4 {[%clk 0:00:05]}  Qxh7 {[%clk 0:00:06]} 55. Kg3 {[%clk 0:00:06]}  Bxg4 {[%clk 0:00:06]} 56. Kxg4 {[%clk 0:00:06]}  g5 {[%clk 0:00:07]} 57. Kxg5 {[%clk 0:00:06]}  Qf5+ {[%clk 0:00:08]} 58. Kh4 {[%clk 0:00:07]}  Qxf3 {[%clk 0:00:08]} 59. Kg5 {[%clk 0:00:07]}  Qf5+ {[%clk 0:00:08]} 60. Kh6 {[%clk 0:00:08]}  Qg6# {[%clk 0:00:08]} 0-1


[Site "https://www.chess.com"]

[Event "Titled Tuesday Blitz June 13 Early 2023"]
[White "Ciorgovean, Iustin"]
[Black "Hayrapetyan, Hovik"]
[WhiteFideId "1242911"]
[BlackFideId "13302639"]
[WhiteElo "2186"]
[BlackElo "2348"]
[Result "0-1"]
[Round "10"]
[TimeControl "180+2"]
[Date "2023.06.13"]
[WhiteClock "0:00:09"]
[BlackClock "0:00:05"]
[Board "82"]

1. e4 {[%clk 0:03:00]}  c5 {[%clk 0:02:59]} 2. Nf3 {[%clk 0:03:00]}  d6 {[%clk 0:03:00]} 3. Bb5+ {[%clk 0:03:01]}  Nd7 {[%clk 0:03:00]} 4. a4 {[%clk 0:02:58]}  Nf6 {[%clk 0:02:58]} 5. Nc3 {[%clk 0:02:58]}  a6 {[%clk 0:02:56]} 6. Be2 {[%clk 0:02:49]}  g6 {[%clk 0:02:54]} 7. O-O {[%clk 0:02:49]}  Bg7 {[%clk 0:02:54]} 8. a5 {[%clk 0:02:47]}  O-O {[%clk 0:02:52]} 9. d4 {[%clk 0:02:45]}  cxd4 {[%clk 0:02:48]} 10. Nxd4 {[%clk 0:02:44]}  Qc7 {[%clk 0:02:41]} 11. Re1 {[%clk 0:02:36]}  b5 {[%clk 0:02:32]} 12. axb6 {[%clk 0:02:34]}  Nxb6 {[%clk 0:02:32]} 13. Bf1 {[%clk 0:02:13]}  Bb7 {[%clk 0:02:31]} 14. Nb3 {[%clk 0:02:11]}  Rfd8 {[%clk 0:02:04]} 15. Na5 {[%clk 0:02:06]}  Bc8 {[%clk 0:02:04]} 16. Nd5 {[%clk 0:01:54]}  Nfxd5 {[%clk 0:01:53]} 17. exd5 {[%clk 0:01:55]}  e5 {[%clk 0:01:37]} 18. dxe6 {[%clk 0:01:48]}  Bxe6 {[%clk 0:01:36]} 19. c3 {[%clk 0:01:47]}  d5 {[%clk 0:01:31]} 20. Be3 {[%clk 0:01:46]}  Nc4 {[%clk 0:01:25]} 21. Nxc4 {[%clk 0:01:37]}  dxc4 {[%clk 0:01:26]} 22. Qa4 {[%clk 0:01:35]}  Rdb8 {[%clk 0:01:02]} 23. Ra2 {[%clk 0:01:31]}  Rb3 {[%clk 0:00:55]} 24. Rd1 {[%clk 0:01:27]}  h5 {[%clk 0:00:52]} 25. Be2 {[%clk 0:01:19]}  Rab8 {[%clk 0:00:46]} 26. Qxa6 {[%clk 0:01:13]}  Rxb2 {[%clk 0:00:44]} 27. Rxb2 {[%clk 0:01:14]}  Rxb2 {[%clk 0:00:45]} 28. Bf1 {[%clk 0:00:58]}  Bxc3 {[%clk 0:00:39]} 29. Rc1 {[%clk 0:00:57]}  Bd2 {[%clk 0:00:30]} 30. Bxd2 {[%clk 0:00:41]}  Rxd2 {[%clk 0:00:31]} 31. Qa8+ {[%clk 0:00:34]}  Kh7 {[%clk 0:00:31]} 32. Qa3 {[%clk 0:00:29]}  Rxf2 {[%clk 0:00:26]} 33. Kxf2 {[%clk 0:00:26]}  Qf4+ {[%clk 0:00:26]} 34. Ke1 {[%clk 0:00:26]}  Qxh2 {[%clk 0:00:20]} 35. Qe3 {[%clk 0:00:22]}  Qc7 {[%clk 0:00:07]} 36. Kf2 {[%clk 0:00:19]}  Qc6 {[%clk 0:00:02]} 37. Rc3 {[%clk 0:00:19]}  Qc7 {[%clk 0:00:02]} 38. Be2 {[%clk 0:00:19]}  Qc6 {[%clk 0:00:01]} 39. Qd4 {[%clk 0:00:18]}  Qb5 {[%clk 0:00:01]} 40. Rc2 {[%clk 0:00:14]}  Qf5+ {[%clk 0:00:01]} 41. Ke3 {[%clk 0:00:10]}  Qxc2 {[%clk 0:00:02]} 42. Qf6 {[%clk 0:00:11]}  Qf5 {[%clk 0:00:02]} 43. Qxf5 {[%clk 0:00:10]}  gxf5 {[%clk 0:00:03]} 44. Kf4 {[%clk 0:00:11]}  Kg6 {[%clk 0:00:03]} 45. Bf3 {[%clk 0:00:11]}  h4 {[%clk 0:00:04]} 46. Bd1 {[%clk 0:00:11]}  c3 {[%clk 0:00:04]} 47. Bc2 {[%clk 0:00:11]}  Kf6 {[%clk 0:00:04]} 48. Bd3 {[%clk 0:00:09]}  Bd5 {[%clk 0:00:05]} 0-1


[Site "https://www.chess.com"]

[Event "Titled Tuesday Blitz June 13 Early 2023"]
[White "Pakleza, Zbigniew"]
[Black "Mamedov, Edgar"]
[WhiteFideId "1119290"]
[BlackFideId "13739980"]
[WhiteElo "2410"]
[BlackElo "2317"]
[Result "0-1"]
[Round "10"]
[TimeControl "180+2"]
[Date "2023.06.13"]
[WhiteClock "0:00:00"]
[BlackClock "0:00:19"]
[Board "83"]

1. g3 {[%clk 0:03:00]}  d5 {[%clk 0:02:57]} 2. b3 {[%clk 0:03:01]}  Nf6 {[%clk 0:02:54]} 3. d3 {[%clk 0:03:01]}  e5 {[%clk 0:02:53]} 4. e3 {[%clk 0:03:02]}  Bb4+ {[%clk 0:02:50]} 5. c3 {[%clk 0:03:02]}  Bd6 {[%clk 0:02:49]} 6. a3 {[%clk 0:03:02]}  O-O {[%clk 0:02:49]} 7. f3 {[%clk 0:03:02]}  d4 {[%clk 0:02:49]} 8. cxd4 {[%clk 0:03:00]}  exd4 {[%clk 0:02:49]} 9. e4 {[%clk 0:03:01]}  c5 {[%clk 0:02:46]} 10. Ne2 {[%clk 0:03:00]}  Nc6 {[%clk 0:02:45]} 11. Bg2 {[%clk 0:03:00]}  Be6 {[%clk 0:02:42]} 12. f4 {[%clk 0:02:55]}  Ng4 {[%clk 0:02:32]} 13. O-O {[%clk 0:02:42]}  Qb6 {[%clk 0:02:25]} 14. b4 {[%clk 0:02:34]}  cxb4 {[%clk 0:02:22]} 15. axb4 {[%clk 0:02:35]}  Nxb4 {[%clk 0:02:18]} 16. f5 {[%clk 0:02:21]}  Bd7 {[%clk 0:02:14]} 17. Na3 {[%clk 0:02:21]}  Ne5 {[%clk 0:02:07]} 18. Nf4 {[%clk 0:02:18]}  Rac8 {[%clk 0:02:01]} 19. Rb1 {[%clk 0:02:10]}  Qa6 {[%clk 0:01:59]} 20. Rxb4 {[%clk 0:01:13]}  Bxb4 {[%clk 0:01:58]} 21. Nc2 {[%clk 0:01:13]}  Bc5 {[%clk 0:01:57]} 22. Rf2 {[%clk 0:01:02]}  Bb5 {[%clk 0:01:52]} 23. Bf1 {[%clk 0:00:57]}  Bb6 {[%clk 0:01:47]} 24. Bb2 {[%clk 0:00:26]}  Ba4 {[%clk 0:01:40]} 25. Nd5 {[%clk 0:00:23]}  Qb5 {[%clk 0:01:27]} 26. Ne7+ {[%clk 0:00:20]}  Kh8 {[%clk 0:01:25]} 27. Nxc8 {[%clk 0:00:20]}  Rxc8 {[%clk 0:01:26]} 28. Na3 {[%clk 0:00:09]}  Qxb2 {[%clk 0:01:05]} 29. Qxa4 {[%clk 0:00:09]}  Qc3 {[%clk 0:01:00]} 30. Rc2 {[%clk 0:00:07]}  Ng4 {[%clk 0:00:32]} 31. Rxc3 {[%clk 0:00:04]}  dxc3+ {[%clk 0:00:32]} 32. Kh1 {[%clk 0:00:05]}  Ne3 {[%clk 0:00:30]} 33. Be2 {[%clk 0:00:03]}  c2 {[%clk 0:00:30]} 34. Nxc2 {[%clk 0:00:04]}  Nxc2 {[%clk 0:00:30]} 35. Qd7 {[%clk 0:00:02]}  Rd8 {[%clk 0:00:26]} 36. Qxf7 {[%clk 0:00:02]}  Bd4 {[%clk 0:00:23]} 37. Bd1 {[%clk 0:00:02]}  Ne3 {[%clk 0:00:21]} 38. Bb3 {[%clk 0:00:02]}  Rc8 {[%clk 0:00:20]} 39. h4 {[%clk 0:00:00]}  h6 {[%clk 0:00:19]} 0-1


[Site "https://www.chess.com"]

[Event "Titled Tuesday Blitz June 13 Early 2023"]
[White "gueraumasague"]
[Black "Ovetchkin, Roman"]
[BlackFideId "4119991"]
[WhiteElo "2498"]
[BlackElo "2398"]
[Result "0-1"]
[Round "10"]
[TimeControl "180+2"]
[Date "2023.06.13"]
[WhiteClock "0:00:04"]
[BlackClock "0:00:09"]
[Board "86"]

1. e4 {[%clk 0:03:00]}  c6 {[%clk 0:02:59]} 2. Nc3 {[%clk 0:03:01]}  d5 {[%clk 0:03:00]} 3. Qf3 {[%clk 0:03:02]}  dxe4 {[%clk 0:02:59]} 4. Nxe4 {[%clk 0:03:02]}  Nf6 {[%clk 0:02:59]} 5. Bc4 {[%clk 0:03:03]}  Nbd7 {[%clk 0:02:43]} 6. Bb3 {[%clk 0:03:03]}  Ne5 {[%clk 0:02:41]} 7. Nxf6+ {[%clk 0:03:00]}  exf6 {[%clk 0:02:33]} 8. Qe3 {[%clk 0:03:00]}  Be7 {[%clk 0:02:33]} 9. d4 {[%clk 0:02:57]}  Ng6 {[%clk 0:02:33]} 10. Ne2 {[%clk 0:02:42]}  O-O {[%clk 0:02:32]} 11. h4 {[%clk 0:02:41]}  Bd6 {[%clk 0:02:27]} 12. h5 {[%clk 0:02:38]}  Re8 {[%clk 0:02:27]} 13. Qf3 {[%clk 0:02:38]}  Nf8 {[%clk 0:02:26]} 14. Be3 {[%clk 0:02:32]}  Qa5+ {[%clk 0:02:08]} 15. c3 {[%clk 0:02:27]}  Qf5 {[%clk 0:01:56]} 16. Qxf5 {[%clk 0:02:16]}  Bxf5 {[%clk 0:01:57]} 17. h6 {[%clk 0:02:16]}  g5 {[%clk 0:01:47]} 18. Kd2 {[%clk 0:02:15]}  Ng6 {[%clk 0:01:47]} 19. Ng3 {[%clk 0:02:08]}  Bxg3 {[%clk 0:01:45]} 20. fxg3 {[%clk 0:02:08]}  Be6 {[%clk 0:01:45]} 21. Rhf1 {[%clk 0:01:57]}  Bxb3 {[%clk 0:01:41]} 22. axb3 {[%clk 0:01:58]}  Re6 {[%clk 0:01:41]} 23. Kd3 {[%clk 0:01:54]}  a6 {[%clk 0:01:39]} 24. Ra5 {[%clk 0:01:42]}  Rae8 {[%clk 0:01:36]} 25. Bd2 {[%clk 0:01:43]}  Ne7 {[%clk 0:01:21]} 26. c4 {[%clk 0:01:36]}  Rd8 {[%clk 0:00:56]} 27. g4 {[%clk 0:01:26]}  Red6 {[%clk 0:00:52]} 28. Bc3 {[%clk 0:01:24]}  Kf8 {[%clk 0:00:49]} 29. Kc2 {[%clk 0:01:13]}  Ke8 {[%clk 0:00:45]} 30. Raa1 {[%clk 0:01:13]}  Re6 {[%clk 0:00:42]} 31. Rae1 {[%clk 0:01:10]}  Rdd6 {[%clk 0:00:40]} 32. Kd3 {[%clk 0:00:44]}  Ng8 {[%clk 0:00:30]} 33. Bb4 {[%clk 0:00:29]}  Rxe1 {[%clk 0:00:24]} 34. Rxe1+ {[%clk 0:00:30]}  Re6 {[%clk 0:00:24]} 35. Rh1 {[%clk 0:00:31]}  Kd7 {[%clk 0:00:21]} 36. d5 {[%clk 0:00:25]}  cxd5 {[%clk 0:00:20]} 37. cxd5 {[%clk 0:00:26]}  Re5 {[%clk 0:00:19]} 38. Kd4 {[%clk 0:00:26]}  Re2 {[%clk 0:00:18]} 39. Ba5 {[%clk 0:00:15]}  f5 {[%clk 0:00:15]} 40. Rc1 {[%clk 0:00:10]}  Re4+ {[%clk 0:00:12]} 41. Kd3 {[%clk 0:00:09]}  Rxg4 {[%clk 0:00:12]} 42. Rc7+ {[%clk 0:00:10]}  Kd6 {[%clk 0:00:12]} 43. Rxf7 {[%clk 0:00:09]}  Kxd5 {[%clk 0:00:11]} 44. Rxf5+ {[%clk 0:00:09]}  Ke6 {[%clk 0:00:11]} 45. Rf2 {[%clk 0:00:05]}  Nxh6 {[%clk 0:00:11]} 46. Bc3 {[%clk 0:00:05]}  Nf5 {[%clk 0:00:11]} 47. Re2+ {[%clk 0:00:05]}  Kd6 {[%clk 0:00:11]} 48. Rf2 {[%clk 0:00:05]}  Rg3+ {[%clk 0:00:10]} 49. Ke4 {[%clk 0:00:04]}  Ke6 {[%clk 0:00:08]} 50. Rxf5 {[%clk 0:00:04]}  Rg4+ {[%clk 0:00:09]} 51. Kf3 {[%clk 0:00:01]}  Kxf5 {[%clk 0:00:10]} 52. Bd2 {[%clk 0:00:02]}  h5 {[%clk 0:00:09]} 53. Bc3 {[%clk 0:00:02]}  h4 {[%clk 0:00:10]} 54. Bd2 {[%clk 0:00:03]}  Rg3+ {[%clk 0:00:09]} 55. Kf2 {[%clk 0:00:03]}  Rxb3 {[%clk 0:00:08]} 56. Bc3 {[%clk 0:00:03]}  Rxc3 {[%clk 0:00:08]} 57. bxc3 {[%clk 0:00:04]}  a5 {[%clk 0:00:09]} 0-1


[Site "https://www.chess.com"]